fUSD/lending_fUSD_20240122
["ID","MTS","AMOUNT","RATE_DAILY","PERIOD"]
[312490024,1705927861389,-556.58,0.00052766,2]
[312490025,1705927861398,-5000.0,0.000528,30]
[312490026,1705927861408,-297.18317001,0.00052822,8]
[312490027,1705927861417,-450.0,0.00052872,10]
[312490028,1705927861429,-350.0,0.00052877,120]
[312490029,1705927861439,-568.0,0.00052877,10]
[312490030,1705927861448,-219.0,0.00052877,7]
[312490031,1705927861458,-150.0,0.000529,23]
[312490032,1705927861467,-1000.0,0.00052999,120]
[312490033,1705927861477,-100000.0,0.00053,43]
[312490034,1705927861486,-563.66276479,0.00053,2]
[312490035,1705927861495,-300.0,0.00053,24]
[312490036,1705927861504,-133746.07137055,0.00053,30]
[312490037,1705927861513,-300.0,0.00053,54]
[312490038,1705927861522,-1850.969992,0.00053,60]
[312490039,1705927861531,-448.84506244,0.00053,120]
[312490040,1705927861540,-300000.0,0.00053,120]
[312490041,1705927861549,-300.0,0.00053,31]
[312490042,1705927861559,-150.0,0.00053,120]
[312490043,1705927861568,-150.0,0.00053,31]
[312490044,1705927861577,-2000.0,0.00053029,120]
[312490045,1705927861586,-2000.0,0.00053029,120]
[312490046,1705927861596,-437.01015768,0.00053029,120]
[312490047,1705927861605,-152.25070786,0.00053131,56]
[312490048,1705927861614,-738.56,0.0005315,31]
[312490049,1705927861623,-3436.08,0.00053237,2]
[312490050,1705927861633,-12000.0,0.0005328,8]
[312490051,1705927861642,-159.0,0.000533,120]
[312490052,1705927861652,-436.79987106,0.0005331,2]
[312490053,1705927861660,-341.63773526,0.00053424,4]
[312490054,1705927861668,-641.56792554,0.00053424,30]
[312490055,1705927861679,-165.95,0.00053425,120]
[312490056,1705927861689,-583.0,0.00053425,11]
[312490057,1705927861699,-225.0,0.00053425,7]
[312490058,1705927861708,-565000.0,0.000535,120]
[312490059,1705927861718,-265.73727617,0.000535,120]
[312490060,1705927861727,-152.25070786,0.00053511,57]
[312490061,1705927861738,-302.0146319,0.0005353,30]
[312490062,1705927861748,-400.0,0.00053562,120]
[312490063,1705927861757,-205.0,0.00053626,28]
[312490064,1705927861767,-738.77562242,0.00053698,31]
[312490065,1705927861777,-2110.0,0.00053712,15]
[312490066,1705927861789,-50000.0,0.0005376,45]
[312490067,1705927861798,-450.0,0.00053823,10]
[312490068,1705927861808,-200000.0,0.00053868,15]
[312490069,1705927861818,-1942.71759456,0.00053876,2]
[312490070,1705927861828,-152.25070786,0.00053891,59]
[312490071,1705927861837,-150.0,0.000539,24]
[312490072,1705927861847,-50000.0,0.0005395,50]
[312490073,1705927861857,-459.80230885,0.00053952,60]
[312490074,1705927861866,-1127.94546571,0.00053952,60]
[312490075,1705927861876,-1127.94546571,0.00053958,60]
[312490076,1705927861887,-663.60387863,0.00053959,60]
[312490077,1705927861897,-459.80230885,0.0005396,60]
[312490078,1705927861906,-459.80230885,0.00053967,60]
[312490079,1705927861917,-663.60387863,0.00053972,60]
[312490080,1705927861928,-1127.94546571,0.00053972,60]
[312490081,1705927861938,-233.31441023,0.00053973,13]
[312490082,1705927861948,-363.68558977,0.00053973,7]
[312490083,1705927861958,-231.0,0.00053973,7]
[312490084,1705927861969,-663.60387863,0.00053977,60]
[312490085,1705927861978,-663.60387863,0.00053997,60]
[312490086,1705927861988,-459.80230885,0.00053999,60]
[312490087,1705927861998,-1000.0,0.00053999,120]
[312490088,1705927862008,-100000.0,0.00054,44]
[312490089,1705927862017,-1127.94546571,0.00054,60]
[312490090,1705927862027,-500.21592521,0.00054,10]
[312490091,1705927862037,-1008.53,0.00054,30]
[312490092,1705927862047,-1000.0,0.00054,30]
[312490093,1705927862056,-1000.0,0.00054,31]
[312490094,1705927862066,-55712.385288,0.00054,15]
[312490095,1705927862076,-2000.0,0.00054,30]
[312490096,1705927862086,-1000.0,0.00054,30]
[312490097,1705927862099,-1960.36996457,0.00054,30]
[312490098,1705927862115,-25000.0,0.00054,7]
[312490099,1705927862125,-306.0,0.00054,60]
[312490100,1705927862135,-547.23838794,0.00054,120]
[312490101,1705927862146,-500000.0,0.00054,120]
[312490102,1705927862156,-300.0,0.00054,32]
[312490103,1705927862166,-5000.0,0.00054,2]
[312490104,1705927862178,-568.960409,0.00054,30]
[312490105,1705927862188,-150.0,0.00054,32]
[312490106,1705927862199,-718.857662,0.00054002,120]
[312490107,1705927862210,-537.63904529,0.00054037,30]
[312490108,1705927862220,-350.0,0.00054164,120]
[312490109,1705927862230,-2110.0,0.00054212,15]
[312490110,1705927862239,-151.99917139,0.0005424,30]
[312490111,1705927862250,-152.25070786,0.00054271,60]
[312490112,1705927862259,-1713.00610036,0.0005439,120]
[312490113,1705927862268,-159.0,0.000544,120]
[312490114,1705927862278,-1899.035146,0.00054478,120]
[312490115,1705927862289,-641.0,0.0005449,3]
[312490116,1705927862301,-2325007.71247662,0.00054521,30]
[312490117,1705927862312,-612.0,0.00054521,3]
[312490118,1705927862322,-236.0,0.00054521,7]
[312490119,1705927862333,-205.35514609,0.000546,7]
[312490120,1705927862344,-152.25070786,0.0005465,62]
[312490121,1705927862354,-392.0,0.0005469,3]
[312490122,1705927862364,-100000.0,0.000547,30]
[312490123,1705927862374,-2110.0,0.00054712,15]
[312490124,1705927862385,-3913.8,0.00054727,117]
[312490125,1705927862396,-97902.0,0.00054744,30]
[312490126,1705927862406,-205.0,0.00054767,28]
[312490127,1705927862415,-250.0,0.0005477,7]
[312490128,1705927862427,-200.0,0.0005477,7]
[312490129,1705927862437,-818.80861673,0.00054774,10]
[312490130,1705927862447,-181.06349663,0.0005479,30]
[312490131,1705927862457,-181.06,0.0005479,30]
[312490132,1705927862467,-160.94533034,0.0005479,30]
[312490133,1705927862477,-160.94533034,0.0005479,30]
[312490134,1705927862487,-160.94533034,0.0005479,30]
[312490135,1705927862498,-160.94533034,0.0005479,30]
[312490136,1705927862507,-160.94533034,0.0005479,30]
[312490137,1705927862517,-160.93,0.0005479,30]
[312490138,1705927862527,-160.93914657,0.0005479,30]
[312490139,1705927862536,-160.93914657,0.0005479,30]
[312490140,1705927862546,-205.73,0.0005479,30]
[312490141,1705927862556,-164.58561696,0.0005479,30]
[312490142,1705927862565,-164.58561696,0.0005479,30]
[312490143,1705927862573,-277.92,0.0005479,30]
[312490144,1705927862582,-158.81492659,0.0005479,30]
[312490145,1705927862592,-158.81492659,0.0005479,30]
[312490146,1705927862602,-158.81492659,0.0005479,30]
[312490147,1705927862613,-158.81492659,0.0005479,30]
[312490148,1705927862625,-211.01,0.0005479,30]
[312490149,1705927862634,-168.81447853,0.0005479,30]
[312490150,1705927862644,-168.81447853,0.0005479,30]
[312490151,1705927862653,-150.0,0.00054794,30]
[312490152,1705927862662,-150.0,0.00054794,30]
[312490153,1705927862672,-150.0,0.00054794,30]
[312490154,1705927862681,-150.0,0.00054794,30]
[312490155,1705927862690,-150.0,0.00054794,30]
[312490156,1705927862699,-500.0,0.00054794,120]
[312490157,1705927862709,-500.0,0.00054794,30]
[312490158,1705927862718,-2450.34,0.00054794,120]
[312490159,1705927862727,-2450.34,0.00054794,120]
[312490160,1705927862737,-2450.34,0.00054794,120]
[312490161,1705927862746,-2450.34,0.00054794,120]
[312490162,1705927862755,-2450.34,0.00054794,120]
[312490163,1705927862764,-2450.34,0.00054794,120]
[312490164,1705927862773,-2450.34,0.00054794,120]
[312490165,1705927862783,-2450.34,0.00054794,120]
[312490166,1705927862791,-2450.34,0.00054794,120]
[312490167,1705927862800,-2450.34,0.00054794,120]
[312490168,1705927862809,-2450.34,0.00054794,120]
[312490169,1705927862819,-2450.34,0.00054794,120]
[312490170,1705927862828,-2450.34,0.00054794,120]
[312490171,1705927862838,-2450.34,0.00054794,120]
[312490172,1705927862847,-2450.34,0.00054794,120]
[312490173,1705927862857,-2450.34,0.00054794,120]
[312490174,1705927862866,-2450.34,0.00054794,120]
[312490175,1705927862876,-2450.34,0.00054794,120]
[312490176,1705927862885,-2450.34,0.00054794,120]
[312490177,1705927862894,-2450.34,0.00054794,120]
[312490178,1705927862904,-2450.34,0.00054794,120]
[312490179,1705927862913,-2450.34,0.00054794,120]
[312490180,1705927862922,-2450.34,0.00054794,120]
[312490181,1705927862931,-2450.51749376,0.00054794,120]
[312490182,1705927862941,-500.0,0.00054794,30]
[312490183,1705927862950,-5000.0,0.00054794,120]
[312490184,1705927862959,-908.82,0.00054794,120]
[312490185,1705927862969,-500.0,0.00054794,7]
[312490186,1705927862978,-623.4,0.00054794,120]
[312490187,1705927862988,-501.95264939,0.00054794,120]
[312490188,1705927862998,-500.0,0.00054794,120]
[312490189,1705927863007,-500.0,0.00054794,120]
[312490190,1705927863017,-509.82962435,0.00054794,120]
[312490191,1705927863027,-500.0,0.00054794,120]
[312490192,1705927863037,-502.83665808,0.00054794,120]
[312490193,1705927863047,-501.47762087,0.00054794,120]
[312490194,1705927863057,-424.10754247,0.00054794,120]
[312490195,1705927863066,-522.40022352,0.00054794,120]
[312490196,1705927863075,-182.59281555,0.00054794,120]
[312490197,1705927863084,-614.28091124,0.00054794,120]
[312490198,1705927863094,-500.0,0.00054794,120]
[312490199,1705927863104,-502.89902398,0.00054794,120]
[312490200,1705927863118,-194.00511421,0.00054794,9]
[312490201,1705927863127,-204.142511,0.00054794,14]
[312490202,1705927863137,-500.0,0.00054794,120]
[312490203,1705927863147,-500.0,0.00054794,120]
[312490204,1705927863156,-500.0,0.00054794,120]
[312490205,1705927863166,-500.0,0.00054794,120]
[312490206,1705927863176,-524.46776591,0.00054794,120]
[312490207,1705927863185,-500.0,0.00054794,120]
[312490208,1705927863196,-682.83,0.00054794,120]
[312490209,1705927863208,-656.4,0.00054794,120]
[312490210,1705927863218,-505.57993957,0.00054794,120]
[312490211,1705927863228,-304.73308315,0.00054794,120]
[312490212,1705927863238,-500.0,0.00054794,120]
[312490213,1705927863248,-574.62,0.00054794,120]
[312490214,1705927863258,-500.0,0.00054794,120]
[312490215,1705927863267,-509.67006039,0.00054794,120]
[312490216,1705927863277,-753.33,0.00054794,120]
[312490217,1705927863286,-515.59878021,0.00054794,120]
[312490218,1705927863296,-500.0,0.00054794,120]
[312490219,1705927863305,-500.0,0.00054794,120]
[312490220,1705927863314,-673.01,0.00054794,120]
[312490221,1705927863324,-500.0,0.00054794,120]
[312490222,1705927863333,-180.06174512,0.00054794,120]
[312490223,1705927863343,-500.0,0.00054794,120]
[312490224,1705927863353,-500.0,0.00054794,120]
[312490225,1705927863362,-500.0,0.00054794,120]
[312490226,1705927863373,-500.0,0.00054794,120]
[312490227,1705927863383,-900.1,0.00054794,120]
[312490228,1705927863393,-500.0,0.00054794,120]
[312490229,1705927863402,-500.0,0.00054794,120]
[312490230,1705927863412,-500.0,0.00054794,120]
[312490231,1705927863422,-500.0,0.00054794,120]
[312490232,1705927863432,-500.0,0.00054794,120]
[312490233,1705927863442,-500.0,0.00054794,120]
[312490234,1705927863452,-500.0,0.00054794,120]
[312490235,1705927863462,-500.0,0.00054794,120]
[312490236,1705927863471,-500.0,0.00054794,120]
[312490237,1705927863481,-521.33,0.00054794,120]
[312490238,1705927863492,-262.48745233,0.00054794,120]
[312490239,1705927863501,-814.65,0.00054794,120]
[312490240,1705927863512,-500.0,0.00054794,120]
[312490241,1705927863521,-500.0,0.00054794,120]
[312490242,1705927863530,-228.01450688,0.00054794,120]
[312490243,1705927863540,-614.19690888,0.00054794,120]
[312490244,1705927863550,-500.0,0.00054794,5]
[312490245,1705927863558,-500.0,0.00054794,120]
[312490246,1705927863567,-500.0,0.00054794,120]
[312490247,1705927863577,-712.95,0.00054794,120]
[312490248,1705927863586,-500.0,0.00054794,120]
[312490249,1705927863596,-500.0,0.00054794,120]
[312490250,1705927863605,-539.81030464,0.00054794,120]
[312490251,1705927863615,-500.0,0.00054794,120]
[312490252,1705927863625,-500.0,0.00054794,120]
[312490253,1705927863635,-500.99788768,0.00054794,120]
[312490254,1705927863645,-747.54,0.00054794,2]
[312490255,1705927863654,-856.9,0.00054794,120]
[312490256,1705927863664,-500.0,0.00054794,120]
[312490257,1705927863673,-500.0,0.00054794,120]
[312490258,1705927863684,-522.85,0.00054794,120]
[312490259,1705927863694,-648.46,0.00054794,120]
[312490260,1705927863704,-500.0,0.00054794,120]
[312490261,1705927863714,-500.0,0.00054794,120]
[312490262,1705927863723,-692.15,0.00054794,120]
[312490263,1705927863733,-505.3130686,0.00054794,120]
[312490264,1705927863742,-500.0,0.00054794,120]
[312490265,1705927863752,-500.0,0.00054794,120]
[312490266,1705927863763,-591.01,0.00054794,120]
[312490267,1705927863981,-500.0,0.00054794,120]
[312490268,1705927863991,-509.92873712,0.00054794,120]
[312490269,1705927864000,-500.0,0.00054794,120]
[312490270,1705927864009,-503.56000445,0.00054794,120]
[312490271,1705927864018,-731.87,0.00054794,120]
[312490272,1705927864029,-497.44803774,0.00054794,120]
[312490273,1705927864038,-500.0,0.00054794,120]
[312490274,1705927864048,-500.0,0.00054794,120]
[312490275,1705927864057,-500.0,0.00054794,120]
[312490276,1705927864066,-500.0,0.00054794,120]
[312490277,1705927864075,-500.0,0.00054794,120]
[312490278,1705927864086,-500.0,0.00054794,120]
[312490279,1705927864096,-500.0,0.00054794,120]
[312490280,1705927864105,-500.0,0.00054794,120]
[312490281,1705927864117,-500.0,0.00054794,120]
[312490282,1705927864126,-377.27028833,0.00054794,120]
[312490283,1705927864135,-151.11854752,0.00054794,120]
[312490284,1705927864145,-500.0,0.00054794,120]
[312490285,1705927864154,-500.0,0.00054794,120]
[312490286,1705927864163,-500.0,0.00054794,120]
[312490287,1705927864174,-500.0,0.00054794,120]
[312490288,1705927864185,-507.24406193,0.00054794,120]
[312490289,1705927864196,-500.0,0.00054794,120]
[312490290,1705927864205,-500.0,0.00054794,120]
[312490291,1705927864216,-500.0,0.00054794,120]
[312490292,1705927864225,-500.0,0.00054794,120]
[312490293,1705927864234,-500.0,0.00054794,120]
[312490294,1705927864244,-500.0,0.00054794,120]
[312490295,1705927864255,-553.14783053,0.00054794,120]
[312490296,1705927864265,-500.0,0.00054794,120]
[312490297,1705927864274,-500.0,0.00054794,120]
[312490298,1705927864284,-640.25,0.00054794,120]
[312490299,1705927864294,-500.0,0.00054794,120]
[312490300,1705927864304,-500.0,0.00054794,120]
[312490301,1705927864314,-690.59,0.00054794,120]
[312490302,1705927864323,-500.0,0.00054794,120]
[312490303,1705927864332,-500.0,0.00054794,120]
[312490304,1705927864342,-527.55319085,0.00054794,120]
[312490305,1705927864351,-694.75,0.00054794,120]
[312490306,1705927864361,-500.0,0.00054794,120]
[312490307,1705927864371,-903.83,0.00054794,120]
[312490308,1705927864380,-500.0,0.00054794,120]
[312490309,1705927864389,-500.0,0.00054794,120]
[312490310,1705927864398,-500.0,0.00054794,120]
[312490311,1705927864406,-500.0,0.00054794,120]
[312490312,1705927864415,-500.0,0.00054794,120]
[312490313,1705927864425,-500.0,0.00054794,120]
[312490314,1705927864434,-500.0,0.00054794,120]
[312490315,1705927864444,-852.59,0.00054794,120]
[312490316,1705927864454,-169.70349511,0.00054794,120]
[312490317,1705927864463,-500.0,0.00054794,120]
[312490318,1705927864472,-500.0,0.00054794,120]
[312490319,1705927864482,-500.0,0.00054794,7]
[312490320,1705927864491,-500.0,0.00054794,120]
[312490321,1705927864500,-620.48,0.00054794,120]
[312490322,1705927864509,-500.0,0.00054794,120]
[312490323,1705927864519,-500.0,0.00054794,120]
[312490324,1705927864528,-500.0,0.00054794,120]
[312490325,1705927864537,-280.81018275,0.00054794,120]
[312490326,1705927864547,-500.0,0.00054794,120]
[312490327,1705927864556,-590.29,0.00054794,120]
[312490328,1705927864566,-500.0,0.00054794,120]
[312490329,1705927864576,-500.0,0.00054794,120]
[312490330,1705927864585,-500.0,0.00054794,120]
[312490331,1705927864595,-500.0,0.00054794,2]
[312490332,1705927864604,-496.35829271,0.00054794,120]
[312490333,1705927864613,-503.9946994,0.00054794,120]
[312490334,1705927864622,-233.49690263,0.00054794,120]
[312490335,1705927864631,-500.0,0.00054794,120]
[312490336,1705927864640,-500.0,0.00054794,10]
[312490337,1705927864650,-500.0,0.00054794,120]
[312490338,1705927864659,-546.83,0.00054794,120]
[312490339,1705927864669,-500.0,0.00054794,120]
[312490340,1705927864679,-500.0,0.00054794,120]
[312490341,1705927864689,-500.0,0.00054794,120]
[312490342,1705927864698,-668.18,0.00054794,120]
[312490343,1705927864707,-500.0,0.00054794,120]
[312490344,1705927864716,-500.0,0.00054794,120]
[312490345,1705927864725,-500.0,0.00054794,120]
[312490346,1705927864734,-652.68,0.00054794,120]
[312490347,1705927864744,-500.0,0.00054794,120]
[312490348,1705927864753,-506.34,0.00054794,120]
[312490349,1705927864764,-500.0,0.00054794,120]
[312490350,1705927864775,-331.32670262,0.00054794,120]
[312490351,1705927864785,-500.0,0.00054794,120]
[312490352,1705927864795,-504.76,0.00054794,120]
[312490353,1705927864805,-500.0,0.00054794,120]
[312490354,1705927864816,-500.0,0.00054794,120]
[312490355,1705927864825,-548.28,0.00054794,120]
[312490356,1705927864836,-500.0,0.00054794,120]
[312490357,1705927864846,-500.0,0.00054794,120]
[312490358,1705927864856,-500.0,0.00054794,120]
[312490359,1705927864867,-500.0,0.00054794,120]
[312490360,1705927864876,-1000.0,0.00054794,2]
[312490361,1705927864885,-514.49,0.00054794,120]
[312490362,1705927864896,-500.0,0.00054794,120]
[312490363,1705927864906,-500.0,0.00054794,120]
[312490364,1705927864915,-500.0,0.00054794,120]
[312490365,1705927864924,-500.0,0.00054794,120]
[312490366,1705927864935,-500.0,0.00054794,120]
[312490367,1705927864945,-500.0,0.00054794,120]
[312490368,1705927864955,-500.0,0.00054794,120]
[312490369,1705927864965,-500.0,0.00054794,120]
[312490370,1705927864974,-500.0,0.00054794,120]
[312490371,1705927864985,-500.0,0.00054794,120]
[312490372,1705927864995,-906.04,0.00054794,120]
[312490373,1705927865006,-500.0,0.00054794,120]
[312490374,1705927865015,-500.0,0.00054794,120]
[312490375,1705927865026,-600.41,0.00054794,120]
[312490376,1705927865036,-500.0,0.00054794,120]
[312490377,1705927865046,-500.0,0.00054794,120]
[312490378,1705927865057,-500.0,0.00054794,120]
[312490379,1705927865067,-500.0,0.00054794,120]
[312490380,1705927865080,-500.0,0.00054794,120]
[312490381,1705927865090,-500.0,0.00054794,120]
[312490382,1705927865103,-500.0,0.00054794,120]
[312490383,1705927865121,-500.0,0.00054794,120]
[312490384,1705927865133,-500.0,0.00054794,120]
[312490385,1705927865143,-500.0,0.00054794,120]
[312490386,1705927865153,-500.0,0.00054794,120]
[312490387,1705927865162,-500.0,0.00054794,120]
[312490388,1705927865172,-533.62709847,0.00054794,120]
[312490389,1705927865182,-500.0,0.00054794,120]
[312490390,1705927865191,-500.0,0.00054794,120]
[312490391,1705927865201,-500.0,0.00054794,120]
[312490392,1705927865210,-500.0,0.00054794,120]
[312490393,1705927865220,-500.0,0.00054794,120]
[312490394,1705927865231,-500.0,0.00054794,120]
[312490395,1705927865241,-500.0,0.00054794,120]
[312490396,1705927865251,-545.35,0.00054794,120]
[312490397,1705927865260,-500.0,0.00054794,120]
[312490398,1705927865270,-514.60367157,0.00054794,120]
[312490399,1705927865281,-500.0,0.00054794,120]
[312490400,1705927865292,-585.06,0.00054794,120]
[312490401,1705927865301,-500.0,0.00054794,120]
[312490402,1705927865311,-500.0,0.00054794,120]
[312490403,1705927865321,-500.0,0.00054794,120]
[312490404,1705927865331,-604.80605726,0.00054794,120]
[312490405,1705927865341,-691.42,0.00054794,120]
[312490406,1705927865351,-500.0,0.00054794,120]
[312490407,1705927865360,-500.0,0.00054794,120]
[312490408,1705927865370,-500.0,0.00054794,120]
[312490409,1705927865380,-500.0,0.00054794,120]
[312490410,1705927865390,-500.0,0.00054794,120]
[312490411,1705927865400,-500.0,0.00054794,120]
[312490412,1705927865410,-500.0,0.00054794,120]
[312490413,1705927865420,-570.13,0.00054794,120]
[312490414,1705927865431,-500.0,0.00054794,120]
[312490415,1705927865440,-500.0,0.00054794,120]
[312490416,1705927865450,-506.3890616,0.00054794,120]
[312490417,1705927865461,-500.0,0.00054794,120]
[312490418,1705927865470,-504.54107957,0.00054794,120]
[312490419,1705927865480,-500.0,0.00054794,120]
[312490420,1705927865489,-500.0,0.00054794,120]
[312490421,1705927865499,-500.0,0.00054794,120]
[312490422,1705927865509,-500.0,0.00054794,120]
[312490423,1705927865518,-500.0,0.00054794,120]
[312490424,1705927865528,-500.0,0.00054794,120]
[312490425,1705927865538,-348.47488398,0.00054794,120]
[312490426,1705927865547,-500.0,0.00054794,120]
[312490427,1705927865557,-500.0,0.00054794,120]
[312490428,1705927865567,-500.0,0.00054794,120]
[312490429,1705927865576,-504.86,0.00054794,120]
[312490430,1705927865587,-500.0,0.00054794,120]
[312490431,1705927865597,-500.0,0.00054794,120]
[312490432,1705927865607,-500.0,0.00054794,120]
[312490433,1705927865617,-455.13407621,0.00054794,120]
[312490434,1705927865627,-500.0,0.00054794,120]
[312490435,1705927865637,-500.0,0.00054794,120]
[312490436,1705927865647,-713.28,0.00054794,120]
[312490437,1705927865657,-500.0,0.00054794,120]
[312490438,1705927865666,-500.0,0.00054794,120]
[312490439,1705927865677,-500.0,0.00054794,120]
[312490440,1705927865686,-500.0,0.00054794,120]
[312490441,1705927865696,-500.0,0.00054794,120]
[312490442,1705927865704,-500.0,0.00054794,120]
[312490443,1705927865714,-813.09,0.00054794,120]
[312490444,1705927865723,-500.0,0.00054794,120]
[312490445,1705927865733,-500.0,0.00054794,120]
[312490446,1705927865743,-500.0,0.00054794,120]
[312490447,1705927865752,-500.0,0.00054794,120]
[312490448,1705927865761,-500.0,0.00054794,14]
[312490449,1705927865771,-500.0,0.00054794,120]
[312490450,1705927865781,-500.0,0.00054794,120]
[312490451,1705927865790,-500.0,0.00054794,120]
[312490452,1705927865800,-500.0,0.00054794,120]
[312490453,1705927865810,-500.0,0.00054794,120]
[312490454,1705927865819,-500.0,0.00054794,120]
[312490455,1705927865829,-505.31180407,0.00054794,120]
[312490456,1705927865839,-500.0,0.00054794,120]
[312490457,1705927865849,-500.0,0.00054794,120]
[312490458,1705927865858,-500.0,0.00054794,120]
[312490459,1705927865868,-500.0,0.00054794,120]
[312490460,1705927865877,-628.03,0.00054794,120]
[312490461,1705927865888,-500.0,0.00054794,120]
[312490462,1705927865897,-500.0,0.00054794,120]
[312490463,1705927865907,-500.0,0.00054794,120]
[312490464,1705927865916,-668.9,0.00054794,120]
[312490465,1705927865925,-500.0,0.00054794,120]
[312490466,1705927865935,-500.0,0.00054794,120]
[312490467,1705927865944,-500.0,0.00054794,120]
[312490468,1705927865954,-500.0,0.00054794,120]
[312490469,1705927865963,-1214.42,0.00054794,120]
[312490470,1705927865972,-500.0,0.00054794,120]
[312490471,1705927865981,-500.0,0.00054794,120]
[312490472,1705927865990,-613.91240425,0.00054794,120]
[312490473,1705927865999,-500.0,0.00054794,120]
[312490474,1705927866009,-309.04,0.00054794,120]
[312490475,1705927866019,-500.0,0.00054794,120]
[312490476,1705927866028,-1045.13,0.00054794,120]
[312490477,1705927866037,-809.43,0.00054794,120]
[312490478,1705927866047,-500.0,0.00054794,120]
[312490479,1705927866056,-500.0,0.00054794,120]
[312490480,1705927866065,-1004.41,0.00054794,120]
[312490481,1705927866074,-390.7718279,0.00054794,120]
[312490482,1705927866084,-500.0,0.00054794,120]
[312490483,1705927866093,-500.0,0.00054794,120]
[312490484,1705927866103,-502.36980461,0.00054794,120]
[312490485,1705927866114,-500.0,0.00054794,120]
[312490486,1705927866124,-500.0,0.00054794,120]
[312490487,1705927866134,-1073.55,0.00054794,120]
[312490488,1705927866143,-781.98,0.00054794,120]
[312490489,1705927866154,-500.0,0.00054794,2]
[312490490,1705927866163,-500.0,0.00054794,120]
[312490491,1705927866173,-500.0,0.00054794,120]
[312490492,1705927866184,-500.0,0.00054794,120]
[312490493,1705927866194,-1085.25,0.00054794,120]
[312490494,1705927866204,-500.0,0.00054794,120]
[312490495,1705927866214,-864.08,0.00054794,120]
[312490496,1705927866224,-500.0,0.00054794,120]
[312490497,1705927866234,-500.0,0.00054794,2]
[312490498,1705927866243,-500.0,0.00054794,120]
[312490499,1705927866253,-765.53,0.00054794,120]
[312490500,1705927866263,-500.0,0.00054794,120]
[312490501,1705927866272,-500.0,0.00054794,120]
[312490502,1705927866357,-500.0,0.00054794,120]
[312490503,1705927866368,-500.0,0.00054794,120]
[312490504,1705927866378,-1471.45,0.00054794,120]
[312490505,1705927866387,-1778.66,0.00054794,2]
[312490506,1705927866397,-500.0,0.00054794,120]
[312490507,1705927866406,-500.0,0.00054794,120]
[312490508,1705927866416,-500.0,0.00054794,120]
[312490509,1705927866426,-500.0,0.00054794,120]
[312490510,1705927866436,-500.0,0.00054794,120]
[312490511,1705927866446,-500.0,0.00054794,120]
[312490512,1705927866455,-504.83262459,0.00054794,120]
[312490513,1705927866465,-500.0,0.00054794,120]
[312490514,1705927866475,-500.0,0.00054794,120]
[312490515,1705927866484,-500.0,0.00054794,120]
[312490516,1705927866494,-1141.48,0.00054794,120]
[312490517,1705927866504,-510.35184788,0.00054794,120]
[312490518,1705927866513,-500.0,0.00054794,120]
[312490519,1705927866523,-500.0,0.00054794,120]
[312490520,1705927866533,-1324.77,0.00054794,120]
[312490521,1705927866543,-500.0,0.00054794,120]
[312490522,1705927866552,-812.71,0.00054794,120]
[312490523,1705927866562,-500.0,0.00054794,120]